Cogmind - Beta 17 @@@ ROGUE MODE // 2026.06.29 @ 20:57:38 Player: Unmode Result: Destroyed by G-47 Trooper with Particle Gun Performance ------------- Evolutions (0) 0 Regions Visited (1) 200 Robots Destroyed (18) 90 Value Destroyed (437) 437 Prototype IDs (1) 20 Alien Tech Used (0) 0 Bonus (0) 0 TOTAL SCORE: 747 Bonus ------- None Cogmind --------- Core Integrity 0/250 Matter 230/300 Energy 100/100 System Corruption 0% Temperature Warm (129) Movement Treading (240) Ox1 Location -10/Materials Parts ------- > --- POWER (1) -------- (None) > --- PROPULSION (2) --- Light Treads Armored Wheel > --- UTILITY (2) ------ Large Storage Unit > --- WEAPON (2) ------- Light Cannon > --- INVENTORY (15) --- Light Treads Armored Wheel Armored Wheel Armored Wheel High-capacity Matter Pod (25) Improved Terrain Scanner Seismic Detector Beam Cannon Beam Cannon Beam Cannon Advanced Beam Cannon Advanced Beam Cannon Advanced Beam Cannon Peak State ------------ > --- POWER ------------ Ion Engine > --- PROPULSION ------- Light Treads Armored Wheel > --- UTILITY ---------- Large Storage Unit Seismic Detector > --- WEAPON ----------- Beam Cannon Advanced Beam Cannon > --- INVENTORY -------- Wheel Compact Wheel Armored Wheel Armored Wheel Armored Wheel Small Storage Unit Improved Terrain Scanner Beam Cannon Beam Cannon Advanced Beam Cannon Advanced Beam Cannon Assault Rifle Light Assault Rifle [Rating: 12] Favorites ----------- Power Ion Engine Engine Ion Engine Propulsion Light Treads Treads Light Treads Wheel Armored Wheel Utility Large Storage Unit Device Seismic Detector Storage Large Storage Unit Weapon Light Assault Rifle Energy Cannon Beam Cannon Ballistic Gun Light Assault Rifle Ballistic Cannon Light Cannon Build | -11 -10 ------- Run | Yrd Mat Slots Evolved . | . . Power . | . . Propulsion . | . . Utility . | . . Weapon . | . . Parts Attached 18 | 7 11 Power 3 | 1 2 Engine 3 | 1 2 Core . | . . Reactor . | . . Propulsion 5 | 2 3 Treads 3 | 1 2 Leg . | . . Wheel 2 | 1 1 Hover . | . . Flight . | . . Utility 3 | 2 1 Device 1 | 1 . Storage 2 | 1 1 Processor . | . . Hackware . | . . Protection . | . . Artifact . | . . Weapon 7 | 2 5 Energy Gun . | . . Energy Cannon 3 | . 3 Ballistic Gun 3 | 2 1 Ballistic Cannon 1 | . 1 Launcher . | . . Special Weapon . | . . Impact Weapon . | . . Slashing Weapon . | . . Piercing Weapon . | . . Special Melee Weapon . | . . Unidentified Prototypes 1 | . 1 Parts Lost 8 | . 8 Power 3 | . 3 Propulsion 2 | . 2 Utility . | . . Weapon 3 | . 3 Highest Loss Streak 4 | . 4 To Critical Strikes . | . . Average Backups 9 | 1 10 Power . | . . Propulsion 3 | 1 3 Utility 1 | . 1 Weapon 4 | . 4 Tool/Special . | . . Unused Backups 11 | . 11 Power . | . . Propulsion 5 | . 5 Utility 2 | . 2 Weapon 4 | . 4 Tool/Special . | . . Average Slot Usage (%) 91 | . 91 Engine 12 | . 12 Treads 14 | . 14 Wheel 14 | . 14 Device 5 | . 5 Storage 15 | . 15 Energy Cannon 2 | . 2 Ballistic Gun 24 | . 24 Peak Build Rating 12 | 7 12 Average Rating 8 | 5 8 On Entrance 3 | . 7 Avg Prop Armor Cover (%) 8 | 3 9 Naked Turns . | . . Heaviest Build 34 | 14 34 Greatest Support 20 | 20 20 Greatest Overweight (x) 4 | 4 2 Average Overweight (x) 1 | . 1 Largest Inventory Capacity 15 | 8 15 Average Capacity 12 | 7 12 Most Carried 15 | 4 15 Average Carried 9 | 1 10 Final Capacity 15 | 8 15 Final Carried 13 | 4 13 Class Distribution -------------------- 100% | Mutant Dominant Class ---------------- Mutant | -10/Materials Resources | -11 -10 ----------- Run | Yrd Mat Matter Collected 694 | 251 443 Remotely . | . . Salvage Created 732 | 77 655 Parts 40 | 6 34 Haulers Intercepted 2 | . 2 Recyclers Shooed 1 | . 1 Parts Field Recycled . | . . Retrieved Matter . | . . Parts Self-Destructed . | . . Prevented . | . . Parts Restored . | . . Kills | -11 -10 ------- Run | Yrd Mat Combat Hostiles Destroyed 10 | . 10 Guns 8 | . 8 Cannons 2 | . 2 Classes Destroyed 5 | 2 3 Tunneler 1 | 1 . Hauler 2 | . 2 Recycler 2 | 1 1 Watcher 3 | . 3 Grunt 10 | . 10 Best Kill Streak 6 | 2 6 Combat Bots Only 2 | . 2 Max Kills in Single Turn 1 | 1 1 Gunslinging . | . . Exploded . | . . Melee . | . . Uniques/NPCs Destroyed . | . . Combat | -11 -10 -------- Run | Yrd Mat Hostile Shots Fired 123 | . 123 Missed 19 | . 19 Hits 104 | . 104 Projectile 104 | . 104 Damage Taken 1284 | . 1284 Core 250 | . 250 Absorbed by Shields . | . . Core Remaining (%) 100 | 100 . Volleys Fired 94 | 3 91 Largest 2 | 2 2 Hottest 128 | 40 128 Shots Fired 181 | 6 175 Gun 163 | 6 157 Cannon 18 | . 18 Launcher . | . . Special . | . . Kinetic 167 | 6 161 Thermal 14 | . 14 Explosive . | . . Electromagnetic . | . . Robot Hit Streak 15 | 3 15 Robot Miss Streak 4 | 1 4 Penetration Max . | . . Secondary Targets 1 | . 1 Max Gunslinging Chain 1 | . 1 Shots Hit Robots 118 | 3 115 Core Hits 37 | 2 35 Critical Kills 1 | . 1 Critical Parts Destroyed . | . . Critical Strikes 1 | . 1 Destroy 1 | . 1 Melee Attacks . | . . Impact . | . . Slashing . | . . Piercing . | . . Sneak Attacks . | . . Combat Hostiles . | . . Follow-up Attacks . | . . Damage Inflicted 1369 | 35 1334 Guns 1096 | 35 1061 Cannons 273 | . 273 Explosions . | . . Melee . | . . Ramming . | . . Kinetic 1148 | 35 1113 Thermal 221 | . 221 Explosive . | . . Electromagnetic . | . . Impact . | . . Slashing . | . . Piercing . | . . Highest Corruption . | . . Average Corruption . | . . Corruption Purged . | . . Corruption Blocked . | . . Overload Shots . | . . Overflow Damage . | . . Projectiles . | . . Explosions . | . . Melee . | . . Knockbacks 2 | . 2 Impact . | . . Kinetic 2 | . 2 Secondary . | . . Self-Inflicted Damage . | . . Shots . | . . Rammed . | . . Targets Rammed . | . . Kicked . | . . Crushed . | . . Highest Temperature 279 | . 279 Average Temperature 105 | . 105 Received Heat Transfer 717 | . 717 Effects 2 | . 2 Interference 2 | . 2 Siege Activations . | . . Martial Activations . | . . Shielding Activations . | . . Robots Disrupted . | . . Combat Hostiles . | . . Robots Corrupted . | . . Combat Hostiles . | . . Parts Fried . | . . Impact Corruptions . | . . Robots Melted . | . . Combat Hostiles . | . . Parts Melted . | . . Heat Transferred 407 | . 407 Parts Sabotaged . | . . Parts Stolen . | . . Parts Stripped . | . . Power Chain Reactions . | . . Alert | -11 -10 ------- Run | Yrd Mat Maximum Alert Level . | . . Low Security (%) 100 | 100 100 Level 1 . | . . Level 2 . | . . Level 3 . | . . Level 4 . | . . Level 5 . | . . High Security . | . . Max Security . | . . Peak Influence 102 | 10 102 Initial . | . . Average 22 | 1 24 Influence Increases 353 | 10 343 Destroy 0b10 Robot/C 200 | . 200 Destroy 0b10 Robot/NC 40 | 10 30 Destroy Leader 60 | . 60 Successful Hack 22 | . 22 Destroy Structure 1 | . 1 Lose Combat Pursuer 30 | . 30 Influence Decreases 353 | 10 343 Time Decay 323 | 10 313 Lost Part 30 | . 30 Squads Dispatched 4 | . 4 Investigation 2 | . 2 Extermination . | . . Reinforcement 2 | . 2 Assault . | . . Garrison . | . . Intercept . | . . Searches Triggered . | . . Construction Impeded . | . . Haulers Reinforced . | . . Active Scanning Responses . | . . Cargo Convoy Interrupts . | . . Stealth | -11 -10 --------- Run | Yrd Mat Distress Signals 2 | . 2 Communications Jammed . | . . Distress Signals . | . . Times Spotted 21 | . 21 Peak Tracking Total 4 | . 4 Tactical Retreats 2 | . 2 Traps | -11 -10 ------- Run | Yrd Mat Traps Triggered 2 | . 2 Indirectly . | . . Trap Hack Attempts . | . . Triggered . | . . Disarmed . | . . Reprogrammed . | . . Reused . | . . Traps Extracted . | . . Installed . | . . Triggered . | . . Machines | -11 -10 ---------- Run | Yrd Mat Machines Disabled . | . . Max in Single Turn . | . . Machines Repaired . | . . Machines Dismantled . | . . Machines Sabotaged . | . . Overloaded Fab Kills . | . . Hacking | -11 -10 --------- Run | Yrd Mat Machines Accessed 3 | . 3 Terminals 3 | . 3 Fabricators . | . . Repair Stations . | . . Recycling Units . | . . Scanalyzers . | . . Garrison Access . | . . Total Hacks 10 | . 10 Successful 5 | . 5 Failed 5 | . 5 Catastrophic 2 | . 2 Database Lockouts . | . . Manual 5 | . 5 Terminals 10 | . 10 Fabricators . | . . Repair Stations . | . . Recycling Units . | . . Scanalyzers . | . . Garrison Access . | . . Terminal Hacks 2 | . 2 Registered Components 1 | . 1 Zone Layout 1 | . 1 Fabricator Hacks . | . . Repair Station Hacks . | . . Recycling Unit Hacks . | . . Scanalyzer . | . . Garrison Access Hacks . | . . Unauthorized Hacks 3 | . 3 Terminals 3 | . 3 Botnet 2 | . 2 Operators 1 | . 1 Fabricators . | . . Repair Stations . | . . Recycling Units . | . . Scanalyzers . | . . Garrison Access . | . . Data Cores Recovered . | . . Used . | . . Hacking Detections 2 | . 2 Full Trace Events . | . . Feedback Events . | . . Feedback Blocked . | . . Robot Schematics Acquired . | . . Robots Built . | . . Authchips . | . . Time . | . . Total Robot Build Rating . | . . Part Schematics Acquired . | . . Parts Built . | . . Authchips . | . . Time . | . . Total Part Build Rating . | . . Part Studies Acquired . | . . Parts Repaired . | . . Time . | . . Parts Recycled . | . . Recycled Matter . | . . Retrieved Matter . | . . Retrieved Components . | . . Parts Scanalyzed . | . . Part Schematics Acquired . | . . Parts Damaged . | . . Bothacking | -11 -10 ------------ Run | Yrd Mat Used RIF Installer . | . . Robots Hacked . | . . Non-combat . | . . Combat . | . . Robot Hacks Applied . | . . Relay Couplers Released . | . . Fabnet Peak Effective % . | . . Robots Rewired . | . . Allies Hacked . | . . Hacks Repelled . | . . Allies | -11 -10 -------- Run | Yrd Mat Total Allies . | . . Largest Group . | . . Highest-Rated Group . | . . Highest-Rated Ally . | . . Total Orders . | . . Ally Attacks . | . . Total Damage . | . . Kills . | . . Allies Corrupted . | . . Allies Melted . | . . Intel | -11 -10 ------- Run | Yrd Mat Active Infowar (turns) 424 | 17 407 Seismic 424 | 17 407 Robot Analysis Total . | . . Derelict Logs Recovered . | . . Drone Launches . | . . Drone Recoveries . | . . Exploration | -11 -10 ------------- Run | Yrd Mat Turns Passed 1109 | 99 1010 Spaces Moved 505 | 49 456 Core 15 | 15 . Treads 179 | 34 145 Legs . | . . Wheels 311 | . 311 Hover . | . . Flight . | . . Fastest Speed 50 | 50 105 Average Speed 139 | 156 137 Slowest Speed 250 | 250 240 Overloaded Moves . | . . Propulsion Burnouts . | . . Robots Hopped . | . . Potential Cave-ins . | . . Cave-ins Triggered . | . . Exploration Rate (%) 37 | 4 70 Regions Visited 1 Branch Regions . Pre-discovered Areas . | . . Known Exits Taken . | . . Unknown Exits Taken 1 | 1 . Scrap Searched . | . . Spaces Dug . | . . Terrain Destroyed . | . . Melee . | . . Projectile . | . . AOE . | . . Terrain Rammed . | . . Walls Destroyed . | . . Machines Disabled . | . . Actions | -11 -10 --------- Run | Yrd Mat Total 742 | 62 680 Wait 93 | . 93 Move 504 | 48 456 Hop . | . . Pick Up 17 | 4 13 Fast Attach 11 | 7 4 Attach 7 | . 7 Detach 6 | . 6 Swap 5 | . 5 Drop 5 | . 5 Fire 94 | 3 91 Melee . | . . Ram . | . . Kick . | . . Crush . | . . Escape Stasis . | . . Rewire . | . . Trap . | . . Miscellaneous . | . . Route ------- -11/Scrapyard -10/Materials (discovered 3 exits: [*Mat x2] / [*Min]) History --------- Turn | Location | Event 5 | -11/Scrapyard | Discovered new exit (range 16) 100 | -11/Scrapyard | Entered Materials 322 | -10/Materials | Build established: Mutant 909 | -10/Materials | Discovered new exit (range 6) 989 | -10/Materials | Discovered new exit (range 11) 1023 | -10/Materials | Discovered new exit (range 11) 1078 | -10/Materials | Core integrity fell below 50% 1094 | -10/Materials | Core integrity fell below 20% 1110 | -10/Materials | Destroyed by G-47 Trooper with Particle Gun Last Messages --------------- Operator tracking enabled and active. >>Trojan(Botnet) Trojan loaded successfully. Testing... Terminal linked with 0 systems. Awaiting botnet instructions. 01047_ Connecting with Terminal... >>Trojan(Botnet) Trojan loaded successfully. Testing... Terminal linked with 1 system. Awaiting botnet instructions. 01071_ Lgt. Assault Rifle destroyed. 01083_ Ion Engine destroyed. 01091_ Lgt. Treads destroyed. 01093_ G-47 Trooper knocked back. 01098_ Overheating: System interference. 01098_ Lgt. Cannon temporarily disabled. 01107_ Assault Rifle destroyed. 01107_ G-34 Mercenary knocked back. Map ----- +----------------------------------------------------+ | | | | | | | ????????????????????????????????????? | | ????????????????????????????????????? | | ????????????????????????????????????? | | ????????????????????????????????????? | | ????????????????????????????????????? | | ????????????????????????????????????? | | ????????????????????????????????????? | | ????????????######?# # # ????? | | ????????????# #######+## + ????? | | ????????????# ###????? | | ????????????# # ????? | | ????????????# ########## # ????? | | ???????#######+##### #o # ????? | | ???????# # + + ????? | | ???????# # """ # # ????? | | ???????# """"""" # """ # # ????? | | ???????# """"""" # """ # ##?????? | | ???????# """"""" # # ## ????? | | ???????# """"""" ######## ## ????? | | ???????# """"""" # # ##?????? | | ???????############# T ! # # ????? | | ?????????# ## % # # ????? | | ?????????# T ## g @# # ????? | | ?????????# ####/#g## + ????? | | ?????????# + # ????? | | ?????????# ####% # ????? | | ?????????# """ #??# ### ###????? | | ?????????# """ #??#r #?# # ????? | | ###??????# """ #??# #?# + ????? | | #??????# #??# #?# # ????? | | ############+####### ### # ????? | | ### ###????? | | < #?# #??????? | | ## #?# #??????? | | # ############?# #??????? | | # """ # #????# #??????? | | # """ # """ #????# #??????? | | < # """ + "Y" #????# ##?????? | | # # #?????????????? | | # # [ #?????????????? | | # """ #?#######?????????????? | | ## "" #?????????????????????? | | "" #?????????????????????? | | #?????????????????????? | | #?????????????????????? | | #?????????????????????? | | +########## #?????????????????????? | +----------------------------------------------------+ Best States ------------- Heat Dissipation 25 Energy Generation 10 Energy Capacity 250 Matter Stores 300 Matter Capacity 300 Sight Range 16 Terrain Scan Density 10 Evasion (%) 40 Recoil Reduction 1 Item Schematics ----------------- None Robot Schematics ------------------ None Fabricated ------------ Nothing Repaired ---------- Nothing Studied --------- None Alien Tech Used ----------------- None Achievements -------------- None Challenges ------------ None Game ------ Seed StrikeNavigationAccelerator Manual? 0 Play Time 00:14:31 Cumulative 600.9 hours Start 2026.06.29 @ 20:49:13 End 2026.06.29 @ 20:57:38 Sessions 1 Manual Loads 0 Difficulty Rogue Special Mode None Game No. 292 Rogue 285 Adventurer 7 Explorer 0 Win Type - Total 22 Types 13/0/4/5/0/0/0/0/0/0 Lore% 61 Gallery% 70 Achievement% 43 Wizard Run 0 Options --------- Layout 0 ASCII 0 Keyboard 0 Movement Numpad Keybinds 0 Fullscreen 2 Font 36/Terminus++ Map View 76x50 Zoom Use 0% Tactical HUD 1 Map Filters NONE Filters LOW_CONTRAST(13,24,33) Steam 1 RUN: 53f0107f-99c0-488f-827a-74c7ec9cad95